bitfinex/quotes_ETHUSD_20260219
["timestamp","ask_amount","ask_price","bid_price","bid_amount"]
[1771501554861,0.0011,1959.0,1958.9,0.49025336]
[1771501555236,0.0011,1959.0,1958.8,1.76654496]
[1771501556144,0.0011,1959.0,1958.9,0.49025336]
[1771501557357,0.0011,1959.0,1958.7,0.49025336]
[1771501557564,0.48221509,1959.0,1958.7,0.49025336]
[1771501557761,0.48221509,1959.0,1958.6,0.49025336]
[1771501558653,0.48221509,1959.0,1958.6,1.76661883]
[1771501559166,0.48221509,1959.0,1958.5,0.001]
[1771501559334,0.48111509,1958.9,1958.5,0.001]
[1771501559752,0.48111509,1958.8,1958.5,0.001]
[1771501559961,0.48111509,1958.8,1958.7,0.001]
[1771501560163,0.48111509,1958.8,1958.3,0.001]
[1771501560466,0.48111509,1958.5,1958.2,0.001]
[1771501560971,0.48111509,1958.4,1958.2,0.001]
[1771501561279,0.48111509,1958.3,1957.7,2.8932116]
[1771501561843,0.48380833,1958.1,1957.6,0.46461246]
[1771501562842,0.48380833,1958.0,1957.5,2.40310866]
[1771501563043,0.48380833,1958.0,1957.5,2.86772112]
[1771501563464,0.48380833,1958.0,1957.6,0.46461246]
[1771501564237,0.48380833,1958.0,1957.4,6.09061136]
[1771501564238,0.48380833,1957.7,1957.4,0.921871]
[1771501564442,0.48380833,1957.8,1957.2,0.46461246]
[1771501564741,0.48380833,1958.0,1957.4,0.46461246]
[1771501564940,0.48380833,1958.2,1957.6,0.46461246]
[1771501567057,0.4679999,1958.1,1957.6,1.74167748]
[1771501567256,0.4679999,1958.1,1957.6,1.27706502]
[1771501567974,0.4679999,1958.1,1957.7,0.47978978]
[1771501568474,0.4679999,1958.1,1957.6,1.27706502]
[1771501568788,0.4679999,1958.1,1957.5,1.75687737]
[1771501569659,0.4679999,1958.0,1957.5,1.75687737]
[1771501570050,0.4679999,1958.0,1957.5,0.47978978]
[1771501570250,0.4679999,1958.0,1957.5,1.75691474]
[1771501570664,0.4679999,1958.0,1957.3,1.7570362]
[1771501570951,0.4679999,1958.0,1957.4,0.47978978]
[1771501571574,6.91520034,1958.1,1957.4,0.47978978]
[1771501571575,1.74487818,1957.9,1957.4,0.47978978]
[1771501571770,0.4679999,1957.8,1957.3,0.47978978]
[1771501572177,1.4359999,1958.0,1957.3,0.47978978]
[1771501572669,0.4679999,1957.9,1957.3,0.47978978]
[1771501573870,0.4679999,1957.9,1957.4,0.47978978]
[1771501573871,0.4679999,1957.8,1957.4,0.47978978]
[1771501574074,0.4679999,1957.8,1957.2,5.10916264]
[1771501574075,0.4679999,1957.8,1957.2,1.75710573]
[1771501574375,0.4679999,1957.8,1957.4,0.001]
[1771501575970,0.4679999,1957.7,1957.4,0.001]
[1771501577261,2.24486294,1958.0,1957.4,0.48078978]
[1771501577262,0.4679999,1957.9,1957.4,0.48078978]
[1771501577461,1.4379999,1957.9,1957.4,0.48078978]
[1771501578063,1.4379999,1957.9,1957.4,1.75795457]
[1771501578365,0.4679999,1957.8,1957.4,1.75795457]
[1771501579884,0.4679999,1957.8,1957.4,0.48078978]
[1771501581062,0.4679999,1957.7,1957.4,0.001]
[1771501581463,0.4679999,1957.7,1957.4,0.48078978]
[1771501581666,0.4679999,1957.9,1957.4,0.48078978]
[1771501581984,0.969,1957.9,1957.4,0.48078978]
[1771501582187,0.4679999,1958.0,1957.4,0.48078978]
[1771501582366,0.4679999,1958.0,1957.5,0.47978978]
[1771501582574,1.4390999,1958.1,1957.5,0.47978978]
[1771501584375,0.0011,1958.1,1957.7,0.47978978]
[1771501586368,0.0011,1958.1,1957.8,0.47978978]
[1771501588288,0.0011,1958.1,1957.8,1.75669609]
[1771501588590,0.0011,1958.1,1957.9,0.47978978]
[1771501589496,0.0011,1958.1,1957.8,1.27690631]
[1771501589662,0.4690999,1958.1,1957.7,1.75674907]
[1771501591106,0.4690999,1958.1,1957.6,1.27704722]
[1771501591107,0.4679999,1958.0,1957.6,1.27704722]
[1771501591589,0.4679999,1958.0,1957.5,1.75687891]
[1771501592483,0.4679999,1958.0,1957.5,1.75787891]
[1771501592898,0.4690999,1958.0,1957.5,1.75787891]
[1771501594205,0.4690999,1958.0,1957.6,0.47978978]
[1771501594867,0.4690999,1958.0,1957.6,1.75681181]
[1771501596772,0.4690999,1958.0,1957.7,0.48196284]
[1771501597399,0.4690999,1958.0,1957.7,1.75897101]
[1771501597586,0.4690999,1958.0,1957.6,1.27702944]
[1771501597793,0.4690999,1958.0,1957.6,0.48196284]
[1771501599306,0.49794696,1957.9,1957.6,0.48196284]
[1771501599599,0.49794696,1957.9,1957.5,1.27809719]
[1771501599773,0.49794696,1957.9,1957.5,0.48296284]
[1771501600802,0.49794696,1957.9,1957.5,1.76009927]
[1771501604614,0.49794696,1957.9,1957.6,0.48196284]
[1771501606895,0.49794696,1957.9,1957.5,1.27813177]
[1771501607096,0.49794696,1957.9,1957.5,1.76009461]
[1771501607296,0.49794696,1957.9,1957.6,0.48196284]
[1771501608008,0.0011,1958.0,1957.6,0.48196284]
[1771501608607,0.49904696,1958.0,1957.6,0.48196284]
[1771501608919,1.77586594,1958.0,1957.6,0.48196284]
[1771501609215,0.06473638,1958.4,1958.0,0.48196284]
[1771501609390,0.49794696,1958.4,1957.9,0.48196284]
[1771501609888,0.49794696,1958.6,1957.9,0.48196284]
[1771501610998,0.49794696,1958.6,1958.1,0.48196284]
[1771501612225,0.49794696,1958.8,1958.1,0.48196284]
[1771501613231,0.49794696,1958.8,1958.3,0.48196284]
[1771501614831,0.49794696,1958.7,1958.3,0.48196284]
[1771501616097,0.49794696,1958.7,1958.3,1.75857135]
[1771501616994,0.49794696,1958.7,1958.4,0.48196284]
[1771501617225,0.49794696,1958.7,1958.4,1.75846725]
[1771501617594,0.0011,1958.9,1958.5,0.48196284]
[1771501618297,0.49904696,1958.9,1958.5,0.48196284]
[1771501618613,0.0011,1958.9,1958.5,0.48196284]
[1771501618829,0.49794696,1958.8,1958.0,0.48196284]
[1771501620194,0.49794696,1958.8,1958.2,0.48196284]
[1771501621524,0.0011,1958.9,1958.3,0.45932366]
[1771501622404,0.0011,1958.9,1958.5,0.45932366]
[1771501624627,0.0011,1958.9,1958.6,1.27642193]
[1771501624928,0.0011,1958.7,1958.6,1.73574559]
[1771501625394,0.0011,1958.9,1958.7,0.45932366]
[1771501626409,0.0011,1958.8,1958.7,0.45932366]
[1771501626947,0.0011,1958.8,1958.7,1.73568042]
[1771501627740,0.0011,1959.0,1958.8,0.49938287]
[1771501629198,0.0011,1959.0,1958.9,1.77560932]
[1771501630099,0.0011,1959.4,1959.1,0.49938287]
[1771501630320,0.4831906,1959.4,1959.1,0.49938287]
[1771501630901,0.0011,1959.4,1959.1,0.49938287]
[1771501631327,0.0011,1959.4,1959.2,1.27603103]
[1771501632327,0.0011,1959.4,1959.2,1.7754139]
[1771501633027,0.4831906,1959.3,1958.8,5.64472735]
[1771501633228,0.4831906,1959.3,1958.8,0.49938287]
[1771501633402,0.4831906,1959.3,1958.5,0.49938287]
[1771501633403,1.47867989,1959.0,1958.5,0.49938287]
[1771501633611,7.12340724,1959.0,1958.5,0.49938287]
[1771501633935,0.20251859,1958.9,1958.5,0.49938287]
[1771501634138,0.20251859,1958.9,1958.2,1.77602586]
[1771501634313,0.20251859,1958.9,1958.3,0.49938287]
[1771501635203,0.20251859,1959.1,1958.5,0.49938287]
[1771501635620,0.20251859,1959.1,1958.7,0.49938287]
[1771501637650,0.0011,1959.3,1958.9,0.49938287]
[1771501639738,0.20361859,1959.3,1958.9,1.77559858]
[1771501639938,0.0011,1959.3,1959.0,0.49938287]
[1771501640768,0.20361859,1959.3,1958.8,1.77563557]
[1771501642060,0.0011,1959.1,1958.8,1.77563557]
[1771501642256,0.0011,1959.1,1958.9,0.49938287]
[1771501642970,0.0011,1959.1,1958.7,1.77671197]
[1771501643472,0.0011,1959.1,1958.8,0.49938287]
[1771501643651,0.0011,1959.1,1958.7,1.27733044]
[1771501643841,0.20361859,1959.1,1958.7,1.27735119]
[1771501644042,0.20361859,1959.1,1958.7,0.001]
[1771501645952,0.20361859,1959.1,1958.7,0.50038287]
[1771501649055,0.20251859,1959.0,1958.7,0.50038287]
[1771501649246,0.20251859,1959.0,1958.7,0.001]
[1771501650049,0.20251859,1959.0,1958.7,0.50038287]
[1771501654681,0.20251859,1959.0,1957.4,0.001]
[1771501654682,1.3,1958.9,1957.4,0.001]
[1771501654975,2.43841468,1958.2,1957.5,0.49938287]
[1771501655146,3.04801835,1958.1,1957.5,0.49938287]
[1771501655348,2.43841468,1958.4,1957.5,0.49938287]
[1771501655583,3.04555199,1958.3,1957.5,0.49938287]
[1771501655878,3.04555199,1958.2,1957.5,0.49938287]
[1771501656079,3.04555199,1958.1,1957.7,0.49938287]
[1771501656285,3.9164617,1958.5,1957.7,0.49938287]
[1771501656579,3.04294748,1958.4,1957.7,0.49938287]
[1771501656781,3.04294748,1958.3,1957.7,0.49938287]
[1771501656983,3.04294748,1958.2,1957.7,0.49938287]
[1771501657178,3.9164617,1958.5,1957.7,0.49938287]
[1771501657356,3.04084331,1958.4,1957.7,0.49938287]
[1771501658182,4.51893274,1958.4,1957.9,0.47162298]
[1771501658382,3.04084331,1958.3,1957.9,0.47162298]
[1771501658684,3.04084331,1958.2,1957.9,0.47162298]
[1771501658983,1.47808943,1958.4,1957.9,0.47162298]
[1771501659184,3.03935577,1958.3,1957.9,0.47162298]
[1771501659985,3.24087436,1958.3,1957.9,0.47162298]
[1771501660174,0.20151859,1958.3,1957.9,0.47162298]
[1771501660374,1.47813775,1958.3,1957.9,0.47162298]
[1771501660671,3.03814104,1958.2,1957.9,0.47162298]
[1771501661281,1.47815874,1958.3,1957.9,0.47162298]
[1771501661471,0.20151859,1958.1,1957.5,1.74871468]
[1771501661779,3.23883109,1958.0,1957.5,0.47162298]
[1771501661981,3.23883109,1958.0,1957.4,0.001]
[1771501661982,0.20151859,1957.8,1957.4,0.001]
[1771501662152,0.20151859,1957.8,1957.4,1.27819994]
[1771501662352,0.20151859,1957.8,1957.4,1.74982292]
[1771501663058,0.20151859,1958.0,1957.5,0.47162298]
[1771501665390,0.20151859,1958.0,1957.6,0.47162298]
[1771501666067,1.4783341,1958.0,1957.6,0.47162298]
[1771501667286,2.63993327,1958.4,1957.6,0.47162298]
[1771501667484,1.47773044,1959.0,1957.8,0.47162298]
[1771501667662,3.23260047,1958.9,1957.8,0.47162298]
[1771501667863,0.20151859,1958.8,1957.8,0.47162298]
[1771501669284,0.20151859,1958.6,1957.9,1.27687828]
[1771501669486,0.20151859,1958.6,1958.0,0.47162298]
[1771501671689,0.20151859,1958.6,1958.1,1.74837084]
[1771501672387,0.20151859,1958.6,1958.2,0.47162298]
[1771501672686,0.20151859,1958.8,1958.2,0.47162298]
[1771501673590,0.20371859,1959.1,1958.4,0.47162298]
[1771501673792,3.23810943,1959.0,1958.4,0.47162298]
[1771501674090,3.03549084,1958.9,1958.4,0.47162298]
[1771501674281,3.23810943,1958.9,1958.4,0.47162298]
[1771501674480,0.20261859,1958.9,1958.4,0.47162298]
[1771501675784,0.20261859,1958.9,1958.4,1.74813252]
[1771501676488,0.20261859,1958.9,1958.5,0.47162298]
[1771501676701,0.0011,1959.1,1958.5,0.47162298]
[1771501677185,4.31362652,1959.1,1958.5,0.47162298]
[1771501677385,3.0364245,1959.0,1958.5,0.47162298]
[1771501677600,3.0364245,1959.0,1958.7,0.47162298]
[1771501678166,0.0011,1959.1,1958.7,0.47162298]
[1771501678566,3.03799156,1959.1,1958.7,0.47162298]
[1771501678999,2.98361218,1959.1,1958.8,0.47162298]
[1771501679204,0.0011,1959.3,1958.7,0.47162298]
[1771501679577,0.0011,1959.3,1958.9,0.47162298]
[1771501682387,0.0011,1959.3,1959.0,1.2761613]
[1771501683178,0.0011,1959.3,1959.0,1.75572454]
[1771501684797,0.0011,1959.3,1959.1,0.47956324]
[1771501685512,0.0011,1959.3,1959.0,1.2761613]
[1771501685678,0.0011,1959.2,1959.0,1.2761613]
[1771501687296,0.0011,1959.2,1959.0,1.7456518]
[1771501688007,0.0011,1959.2,1959.0,0.4694905]
[1771501688784,0.0011,1959.2,1959.0,1.74560629]
[1771501689915,0.0011,1959.2,1959.1,0.4694905]
[1771501691112,0.0011,1959.2,1959.1,1.74558666]
[1771501692597,0.0011,1959.4,1959.2,0.4694905]
[1771501693110,0.0011,1959.4,1959.2,1.74551414]
[1771501693609,0.0011,1959.4,1959.1,1.27609285]
[1771501693802,0.47275105,1959.4,1958.8,5.57452389]
[1771501694005,0.47275105,1959.4,1958.9,0.4694905]
[1771501696027,0.47275105,1959.4,1959.0,1.2761613]
[1771501697096,0.47275105,1959.4,1959.0,1.7456518]
[1771501698916,0.47275105,1959.4,1959.1,0.001]
[1771501699092,0.0011,1959.3,1959.1,0.001]
[1771501699297,0.47275105,1959.3,1959.1,0.001]
[1771501701299,0.47165105,1959.2,1958.6,1.74587942]
[1771501701621,0.47165105,1959.0,1958.6,1.74591205]
[1771501701921,0.47165105,1958.8,1958.5,1.27643997]
[1771501702292,0.47165105,1958.8,1958.5,0.4694905]
[1771501702491,0.47165105,1959.0,1958.5,0.4694905]
[1771501702690,3.00226612,1958.9,1958.5,0.4694905]
[1771501704191,0.47165105,1958.8,1958.5,0.4694905]
[1771501704398,0.47165105,1958.8,1958.5,1.74594538]
[1771501705003,0.47165105,1958.9,1958.5,1.74594538]
[1771501705320,3.00378046,1958.8,1958.5,1.74594538]
[1771501705693,3.00378046,1958.8,1958.6,0.4694905]
[1771501706126,0.47165105,1959.0,1958.6,0.4694905]
[1771501706447,3.47587427,1958.9,1958.6,0.4694905]
[1771501706597,3.00422322,1958.8,1958.6,0.4694905]
[1771501707038,3.00422322,1958.8,1958.5,1.74593048]
[1771501708900,3.00422322,1958.8,1958.6,0.4694905]
[1771501709094,0.47165105,1959.2,1958.6,0.4694905]
[1771501709419,1.27711308,1959.3,1958.5,1.74593048]
[1771501709420,0.47165105,1959.0,1958.5,1.74593048]
[1771501710835,0.20271859,1958.6,1958.1,0.001]
[1771501714146,0.20271859,1958.4,1958.1,0.001]
[1771501714837,0.20271859,1958.4,1958.2,0.001]
[1771501715003,0.20271859,1958.4,1957.8,0.4704905]
[1771501715204,0.20271859,1958.2,1957.8,0.0028]
[1771501715829,0.20271859,1958.2,1957.9,0.001]
[1771501716247,1.27674786,1958.1,1957.9,0.001]
[1771501716550,0.20271859,1958.0,1957.9,0.001]
[1771501717819,0.20271859,1958.0,1957.8,0.001]
[1771501718015,0.20271859,1958.0,1957.6,0.001]
[1771501718239,0.20271859,1958.0,1957.7,0.0018]
[1771501718756,1.27664783,1958.3,1957.7,0.49838419]
[1771501718914,0.20171859,1958.2,1957.7,0.49838419]
[1771501725048,1.47843686,1958.2,1957.7,0.49838419]
[1771501725342,0.20171859,1958.1,1957.7,0.49838419]
[1771501725745,0.20171859,1958.1,1957.8,0.49658419]
[1771501726150,0.20171859,1958.1,1957.9,0.0018]
[1771501727151,0.20171859,1958.2,1957.9,0.49838419]
[1771501727341,0.20171859,1958.2,1957.9,0.49658419]
[1771501727539,0.20171859,1958.2,1957.9,0.49838419]
[1771501727738,0.20171859,1958.2,1957.9,0.49658419]
[1771501728047,0.20171859,1958.2,1957.9,0.49838419]
[1771501728753,0.20171859,1958.2,1957.9,0.49938419]
[1771501728928,0.20171859,1958.2,1957.9,0.49758419]
[1771501729133,0.20171859,1958.2,1957.9,0.49938419]
[1771501729332,0.0011,1958.1,1957.9,1.27965444]
[1771501729533,0.20281859,1958.8,1958.1,0.49658419]
[1771501729846,1.47898,1959.0,1958.3,0.49658419]
[1771501730036,1.47895019,1959.1,1958.3,0.49658419]
[1771501730236,1.47895019,1959.1,1957.9,1.27785444]
[1771501730237,0.20281859,1959.0,1958.5,0.49658419]
[1771501730534,0.20281859,1958.6,1958.1,0.49658419]
[1771501730740,0.20281859,1958.6,1958.0,0.49658419]
[1771501730940,0.0011,1958.4,1958.2,0.49658419]
[1771501733254,0.0011,1958.4,1958.2,1.77326534]
[1771501733433,0.0011,1958.4,1958.3,0.49658419]
[1771501736060,0.0011,1958.4,1958.3,0.49838419]
[1771501737962,0.20391859,1958.4,1958.0,0.47989078]
[1771501738629,0.0011,1958.4,1958.1,0.47989078]
[1771501739750,0.0011,1958.4,1958.2,0.47989078]
[1771501740635,0.20281859,1958.9,1958.3,0.47989078]
[1771501742253,0.20391859,1958.8,1958.3,1.75645793]
[1771501742441,0.20391859,1958.8,1958.4,0.47989078]
[1771501743537,0.20391859,1959.0,1958.4,0.47989078]
[1771501744264,0.0011,1958.8,1958.5,1.75637788]
[1771501744863,0.0011,1958.8,1958.6,0.47989078]
[1771501749145,0.0011,1958.8,1958.6,1.7563114]
[1771501749348,0.0011,1958.8,1958.7,0.45762817]
[1771501750251,0.20501859,1958.8,1958.5,1.73406773]
[1771501751070,0.0011,1958.8,1958.6,0.45762817]
[1771501753359,0.20501859,1958.8,1958.5,1.27643726]
[1771501753654,0.20501859,1958.8,1958.5,1.73406543]
[1771501753854,0.0011,1958.8,1958.6,0.45762817]
[1771501758951,0.20501859,1958.8,1958.5,1.27643726]
[1771501759174,0.20501859,1958.8,1958.5,1.27743726]
[1771501759473,0.0011,1958.7,1958.5,1.73506543]
[1771501760460,0.20501859,1958.7,1958.4,0.001]
[1771501760782,0.20391859,1958.5,1958.2,0.001]
[1771501760963,0.20391859,1958.3,1958.0,0.45862817]
[1771501761477,0.20391859,1958.3,1958.0,0.001]
[1771501761678,0.20391859,1958.3,1957.9,0.001]
[1771501762858,0.20391859,1958.1,1957.9,0.001]
[1771501763659,0.20391859,1958.1,1957.8,0.001]
[1771501764051,0.20291859,1957.9,1957.6,0.001]
[1771501764883,1.47984071,1957.9,1957.6,0.001]
[1771501766661,0.20291859,1957.8,1957.6,0.001]
[1771501766860,1.47986636,1957.8,1957.6,0.001]
[1771501767287,0.20291859,1957.8,1957.6,0.001]
[1771501769563,1.47987116,1957.8,1957.6,0.001]
[1771501769764,0.20291859,1957.8,1957.6,0.001]
[1771501770985,1.47887453,1957.8,1957.3,0.45762817]
[1771501771189,0.20191859,1957.7,1957.4,0.45762817]
[1771501771492,1.47887453,1957.8,1957.4,0.45762817]
[1771501771990,0.20191859,1957.7,1957.4,0.45762817]
[1771501772390,0.20191859,1958.4,1957.7,0.45762817]
[1771501772590,0.20191859,1958.2,1957.7,0.45762817]
[1771501772888,0.20191859,1958.2,1957.7,0.39762817]
[1771501773186,0.26191859,1958.0,1957.7,0.39762817]
[1771501775494,0.26191859,1958.2,1957.8,0.45762817]
[1771501775989,0.26191859,1958.2,1957.6,0.45762817]
[1771501775990,0.26191859,1958.1,1957.6,0.45762817]
[1771501777171,1.53871159,1958.1,1957.6,0.45762817]
[1771501777476,0.26191859,1957.8,1957.5,0.001]
[1771501780694,1.27694665,1957.8,1957.5,0.001]
[1771501780898,0.26191859,1957.7,1957.5,0.001]
[1771501783103,0.26191859,1958.2,1957.5,0.48985349]
[1771501784909,0.26191859,1958.2,1957.7,0.48885349]
[1771501785200,0.26191859,1958.1,1957.7,0.48885349]
[1771501785380,0.26191859,1958.1,1957.6,0.48885349]
[1771501786876,0.26191859,1958.1,1957.7,1.27700873]
[1771501788285,0.26191859,1958.1,1957.6,1.76587923]
[1771501789602,0.26191859,1958.5,1957.7,0.48885349]
[1771501789802,0.26191859,1958.5,1957.9,0.48885349]
[1771501790011,0.0011,1958.6,1958.1,0.48885349]
[1771501790310,0.0011,1958.6,1958.3,0.48885349]
[1771501791307,0.0011,1958.4,1958.3,0.48885349]
[1771501791511,0.0011,1958.4,1958.3,1.76547096]
[1771501792004,0.0011,1958.4,1958.3,0.48885349]
[1771501792205,0.0011,1958.4,1958.1,0.48885349]
[1771501795013,0.0011,1958.4,1958.2,0.48885349]
[1771501798982,0.0011,1958.4,1958.0,0.48885349]
[1771501800209,0.0011,1958.4,1957.9,1.27687173]
[1771501800210,1.27661747,1958.3,1957.8,0.46137974]
[1771501800410,0.26191859,1958.2,1957.8,0.46137974]
[1771501800980,0.26191859,1958.2,1957.7,0.001]
[1771501801405,0.26191859,1958.2,1957.7,0.46237974]
[1771501802732,1.53866645,1958.1,1957.5,1.73947982]
[1771501803087,1.53866645,1958.1,1957.6,0.46137974]
[1771501803490,1.53866645,1958.1,1957.8,0.001]
[1771501803688,0.32091859,1958.0,1957.5,0.001]
[1771501804203,0.32091859,1958.0,1957.5,0.46237974]
[1771501805496,1.59774113,1958.0,1957.5,1.73951298]
[1771501805824,1.59774113,1958.0,1957.7,0.001]
[1771501806122,0.31991859,1957.9,1957.5,0.001]
[1771501806322,0.31991859,1957.9,1957.5,0.46237974]
[1771501807719,1.59684497,1957.9,1957.5,0.46237974]
[1771501808093,1.59671791,1958.1,1957.6,0.45312306]
[1771501809026,0.31991859,1957.9,1957.5,0.001]
[1771501809897,1.59686209,1957.8,1957.4,0.001]
[1771501810227,0.31991859,1957.7,1957.4,0.001]
[1771501811237,1.59683857,1957.9,1957.4,0.45412306]
[1771501811419,5.10735202,1958.0,1957.4,0.45412306]
[1771501811420,1.27685814,1958.0,1957.4,0.45412306]
[1771501811633,1.59677673,1958.0,1957.4,0.45412306]
[1771501812610,1.59677673,1958.0,1957.5,0.45312306]
[1771501814628,1.5966548,1958.2,1957.7,0.45312306]
[1771501815001,0.31991859,1958.1,1957.7,0.45312306]
[1771501816132,0.31991859,1958.1,1957.5,1.27712797]
[1771501816338,0.31991859,1957.9,1957.4,0.001]
[1771501816647,0.31991859,1957.6,1957.1,0.001]
[1771501817133,0.31991859,1957.6,1956.9,0.45312306]
[1771501817334,0.31991859,1957.6,1956.6,0.45312306]
[1771501818135,0.31991859,1957.6,1957.2,0.45412306]
[1771501818332,0.31991859,1957.6,1957.2,0.001]
[1771501819632,1.2771392,1957.5,1957.2,0.001]
[1771501819930,1.59700436,1957.6,1957.2,0.001]
[1771501820509,0.31991859,1957.6,1957.2,0.45412306]
[1771501820725,1.59699469,1957.6,1957.2,0.45412306]
[1771501823238,1.59699469,1957.6,1956.0,1.27806815]
[1771501823239,0.31991859,1957.1,1956.0,1.27806815]
[1771501823535,0.31991859,1957.1,1956.1,0.45312306]
[1771501824008,0.31991859,1956.9,1956.2,0.45312306]
[1771501824335,1.59738409,1957.0,1956.2,0.45312306]
[1771501824638,0.31991859,1956.9,1956.2,0.45312306]
[1771501825945,0.31991859,1956.9,1955.9,0.45312307]
[1771501826142,0.31991859,1956.7,1955.9,0.45312307]
[1771501826712,0.31991859,1956.7,1956.0,0.45312306]
[1771501828160,1.59764525,1956.6,1956.0,0.45312306]
[1771501828359,0.31991859,1956.5,1956.0,0.45312306]
[1771501829229,7.09438405,1956.5,1955.7,0.003]
[1771501829456,0.31991859,1956.4,1955.4,0.45312306]
[1771501829664,0.31991859,1956.2,1955.1,0.45312306]
[1771501829871,0.31991859,1956.4,1955.1,0.45312306]
[1771501830230,0.31991859,1956.4,1955.3,0.45312306]
[1771501830231,0.31991859,1956.2,1955.3,0.45312306]
[1771501830629,0.31991859,1956.2,1955.1,1.73180495]
[1771501830846,0.31991859,1956.2,1955.2,0.45312306]
[1771501831662,0.31991859,1956.0,1954.9,1.27879178]
[1771501831830,0.31991859,1955.8,1954.9,0.45312306]
[1771501832349,0.31991859,1955.6,1954.9,1.73195515]
[1771501832554,2.62437015,1955.9,1954.9,1.73195515]
[1771501832555,3.90258958,1955.9,1955.0,0.45312306]
[1771501832755,4.22250817,1955.9,1955.0,0.45312306]
[1771501833065,3.90255444,1955.9,1955.0,0.45312306]
[1771501833275,0.31991859,1955.8,1955.0,0.45312306]
[1771501834057,3.90255444,1955.9,1954.8,0.45312306]
[1771501834058,0.31991859,1955.6,1954.8,0.45312306]
[1771501834274,1.27844541,1955.5,1954.9,0.45312306]
[1771501834573,1.598364,1955.5,1954.9,0.45312306]
[1771501834960,0.31991859,1955.4,1954.8,0.45312306]
[1771501835263,1.27844541,1955.5,1954.8,0.45312306]
[1771501835485,0.31991859,1955.4,1954.8,0.45312306]
[1771501835693,0.31991859,1955.4,1954.7,2.26714309]
[1771501835872,0.31991859,1955.4,1954.8,0.45312306]
[1771501836260,0.31991859,1955.2,1954.7,0.8428624]
[1771501836566,19.06235817,1955.3,1952.9,0.5]
[1771501836567,7.45991467,1955.0,1952.9,0.5]
[1771501836754,8.63609084,1955.3,1953.3,0.5]
[1771501836947,19.061089,1955.1,1953.3,0.5]
[1771501837144,30.1024,1954.8,1953.3,0.5]
[1771501837377,0.1024,1954.8,1953.3,0.5]
[1771501837551,2.215009,1954.7,1953.3,0.5]
[1771501838471,1.27903407,1954.6,1953.5,0.5]
[1771501838679,6.072584,1954.5,1953.5,0.5]
[1771501839853,1.27903407,1954.6,1953.5,0.5]
[1771501840174,1.27901673,1954.7,1953.5,0.5]
[1771501840570,1.27901673,1954.7,1953.6,1.27968877]
[1771501840767,1.27901673,1954.7,1953.7,0.5]
[1771501841993,7.35751467,1954.5,1953.5,0.5]
[1771501842204,1.27901673,1954.7,1953.5,0.5]
[1771501842508,15.004578,1954.6,1953.5,0.5]
[1771501842786,1.27909951,1954.5,1953.7,0.5]
[1771501844551,0.1024,1954.7,1953.8,1.27955778]
[1771501844751,0.1024,1954.7,1953.9,0.5]
[1771501845692,1.27890321,1954.8,1953.9,0.5]
[1771501846058,2.865548,1954.7,1953.9,0.5]
[1771501846481,7.35751467,1954.5,1953.5,0.5]
[1771501846655,18.397514,1954.2,1953.5,0.5]
[1771501846855,18.397514,1954.2,1953.2,1.92455271]
[1771501847162,18.397514,1954.2,1953.3,0.5]
[1771501847375,1.27923041,1954.3,1953.3,0.5]
[1771501848786,1.27936134,1954.1,1953.4,0.5]
[1771501849180,1.27936134,1954.1,1953.4,0.503]
[1771501849983,1.27928775,1954.3,1953.4,0.503]
[1771501850690,1.27909951,1954.5,1953.6,0.5]
[1771501852357,1.2790866,1954.6,1953.6,0.5]
[1771501852558,1.27900965,1954.7,1953.6,0.5]
[1771501852801,2.784551,1954.9,1953.7,1.27962327]
[1771501853013,1.27880882,1955.0,1953.8,0.5]
[1771501854873,0.1024,1955.0,1954.0,0.5]
[1771501855279,5.11495516,1955.1,1954.0,0.5]
[1771501857164,0.1024,1955.1,1954.2,0.5]
[1771501857662,5.11545041,1955.3,1954.4,0.5]
[1771501857663,0.0011,1955.3,1954.4,0.5]
[1771501858271,1.27968077,1955.3,1954.4,0.5]
[1771501858501,0.0011,1955.3,1954.4,0.5]
[1771501859227,0.0011,1955.3,1954.6,0.5]
[1771501861779,0.0011,1955.3,1954.6,1.77902333]
[1771501862098,0.0011,1955.3,1954.6,0.5]
[1771501862299,0.0011,1955.3,1954.7,0.5]
[1771501863901,0.0011,1955.3,1954.7,1.7789312]
[1771501864312,0.0011,1955.3,1954.8,0.5]
[1771501864895,0.57,1955.8,1954.9,0.49945]
[1771501865105,1.84829708,1955.8,1954.9,0.49945]
[1771501865289,1.84826865,1955.8,1954.9,0.49945]
[1771501866112,1.84826865,1955.8,1955.1,0.49945]
[1771501866113,1.84826781,1955.8,1955.1,0.49945]
[1771501866624,0.0011,1955.8,1954.8,5.11512255]
[1771501866802,0.0011,1955.5,1954.8,6.39386189]
[1771501867604,0.0011,1955.8,1955.0,0.49945]
[1771501867807,0.11676931,1956.0,1955.0,0.49945]
[1771501868008,3.5421,1955.7,1955.1,6.89331189]
[1771501868207,1.27838003,1955.6,1955.1,0.49945]
[1771501869111,5.11315663,1955.8,1955.2,6.89331189]
[1771501869302,3.780252,1955.7,1955.2,0.49945]
[1771501869688,5.11315663,1955.8,1955.2,0.49945]
[1771501869885,5.11315663,1955.8,1955.2,6.89331189]
[1771501870087,1.27838003,1955.6,1955.2,6.89331189]
[1771501870419,5.11311712,1955.8,1955.3,6.39386189]
[1771501870800,1.2782493,1955.8,1955.3,6.39386189]
[1771501871826,0.0011,1955.6,1955.3,6.39386189]
[1771501872033,0.1024,1956.0,1955.3,6.89331189]
[1771501872185,1.27798793,1956.2,1955.5,0.49945]
[1771501872594,0.0011,1955.7,1955.5,0.49945]
[1771501872815,1.27798793,1956.2,1955.5,0.49945]
[1771501873016,1.27798793,1956.2,1955.6,6.39386189]
[1771501873192,14.688613,1956.1,1955.6,6.39386189]
[1771501873394,14.69566012,1956.1,1955.2,0.49945]
[1771501873608,0.00704712,1956.1,1955.3,6.16237289]
[1771501873826,23.79895685,1955.9,1955.3,6.16237289]
[1771501873988,20.944011,1955.8,1955.4,6.16237289]
[1771501874189,1.27831466,1955.7,1955.3,6.16237289]
[1771501874509,1.27831466,1955.7,1955.2,0.49945]
[1771501875015,1.27831466,1955.7,1954.1,14.99607492]
[1771501875016,0.19155648,1955.6,1954.6,0.49945]
[1771501875914,1.27831466,1955.7,1954.6,0.49945]
[1771501876293,1.27831466,1955.7,1954.8,0.49945]
[1771501877713,1.46792509,1955.8,1954.8,0.49945]
[1771501878501,1.56629126,1956.0,1955.0,0.49945]
[1771501878709,0.18577266,1955.9,1955.0,0.49945]
[1771501878889,0.1838526,1955.8,1955.0,0.49945]
[1771501879094,1.4619712,1956.0,1955.0,0.49945]
[1771501879315,5.11202671,1956.2,1955.0,0.49945]